{"text_format":"1","workbook":"xlsx","n_sheets":7,"sheets":["Print5","Sheet13","Support","Sheet02","Sheet05","Sheet5","Sheet8"],"not_rendered":{"charts":0,"images":3,"macros":1,"external_links":1,"defined_names":7,"comments":1,"pivot_tables":0},"unopened":[],"bounds":{"document_bytes":16777216,"sheet_cells":100000,"rows_first":2000,"rows_last":500,"rows_between":2000,"halvings":0,"cell_chars":16384,"cell_head_chars":4096},"cells_cut":0,"cells_raw":0,"read":"whole","date_system":"1900"}

{"sheet":"Print5","index":0,"n_rows":23,"n_cols":16,"rows_kept":23,"cut":false,"hidden":true,"merged":[[22,1,23,8],[5,7,5,8],[12,5,12,8],[14,2,14,4],[16,4,16,7],[20,5,20,7],[21,3,21,4]]}
[]
[]
[null,null,null,null,null,null,null,null,null,null,null,null,null,null,"عراقي"]
[null,null,{"$f":"WEEKDAY(D8,1)","v":"1900-01-04"},null,null,null,null,null,null,null,null,null,null,"جنس العملة",0,{"$f":"kh_TextNum($B11,$C$3,$C$4,$C$5,$C$6,$C$7)","v":{"$error":"#NAME?"}}]
[null,null,null,null,"سند قبض",null,null,null,null,null,null,null,null,"العملة مفرد","دينار"]
[null,null,null,null,null,null,null,null,null,null,null,null,null,"العملة جمع","دنانير"]
[null,null,null,null,null,null,null,null,null,null,null,null,null,"عملة الكسر","فلس"]
[null,null,"التاريخ","2020/08/26","رقم الحركة","8",null,null,null,null,null,null,null,"طول الكسر",2]
[]
[]
[null,null,"استلمنا من :","ggggg"]
[]
[null,null,"مبلغــــا وقـــدره:","22.5",null,{"$f":"SpellNumber(D13)","v":"Twenty Two Egyptian pounds and Fifty  piasters"}]
[]
[]
[]
[null,null,"طريقة الدفع","نقداً"]
[]
[null,null,"وذلـــك عـــــن     :","grgrgr"]
[]
[]
[null,null,"المستلم :",null,null,"التوقيـــع :"]
[null,"                                                                                                                                                                                نسخة اليكترونية معتمدة"]

{"sheet":"Sheet13","index":1,"n_rows":19,"n_cols":9,"rows_kept":19,"cut":false,"hidden":true,"merged":[]}
["التاريخ","رقم السند","نوع السند","الاسم","البيان","المبلغ","التسديد","بنك","حواله"]
["2020-07-26",1,"سند قبض","AAAAA","HHHHH",1000,"CASH"]
["2020-07-26",2,"سند صرف","BBBBB","RRRRR",200,"CASH"]
["2020-07-26",3,"سند صرف","DDDDD","YYYYYY",200,"CHEEQ","MISR",1234]
["2020-07-26",4,"سند قبض","GGGGG","INCOME",1000,"CASH"]
["2020-07-26",5,"سند قبض","dddd","hyyyy",1000,"CASH"]
["2020-07-26",6,"سند صرف","YYYYYY","KKKKKKK",2000,"CASH"]
["2020-07-28",7,"سند قبض","rrrrrr","nnnnnn",100,"CASH"]
["2020-07-29",8,"سند قبض","AASS","GHGHG",100,"CASH"]
["2020-07-29",9,"سند قبض","gggg","4eeee",100,"CASH"]
["2020-08-26",10,"سند قبض","ggggg","grgrgr",100,"CASH"]
["2020-09-23",11,"سند قبض","ALI ALI","FGFGFGFG",150,""]
["2020-09-23",12,"سند صرف","FGFGG","TTYYTTYY",120,"","MNMN",1200]
["2020-09-23",13,"سند قبض","GTTGT","TRRRTTT",100,"","OPOP",155]
["2020-09-23",14,"سند قبض","YYY","GGGGG",50,"","RRR",1555]
["2020-09-23",15,"سند قبض","GHHHH","YYYYY",111]
["2020-09-23",16,"سند قبض","WWWW","UUUUU",11,""]
["2020-09-23",16,"سند قبض","ggg","gggg",44,"نقداً"]
["2020-09-23",17,"سند قبض","rrr","hhhh",155,"نقداً"]

{"sheet":"Support","index":2,"n_rows":38,"n_cols":19,"rows_kept":38,"cut":false,"hidden":true,"merged":[]}
["Room","Meals","status","Room Type","Country","Combany","ID Type",null,"Status",null,"Years",null,"Months","Index",null,"Rooms",null,"Description"]
["Room 101","B.O","Reservation","Single","Abkhazia","Booking,com","ID",null,"Unconfirmed","سند صرف",2020,null,"January",1,null,"Room 101",null,"Towels","Room Charge"]
["Room 102","Bed & Brakfast","Check IN","Double","Afghanistan","شركه تنمية خدمات المشروعات","Passport",null,"Confirmed","سند قبض",2021,null,"February",2,null,"Room 102",null,"Damage","Payment Type"]
["Room 103","H.B","Check OUT",null,"Akrotiri",null,"Driver License",null,"Paid","نقداً",2022,null,"March",3,null,"Room 103",null,"Drinks","Cash"]
["Room 104","F.B",null,null,"Aland",null,null,null,"Cancelled","شيك",2023,null,"April",4,null,"Room 104",null,"Tokens","Visa"]
["Room 105","ALL SOFT",null,null,"Albania",null,null,null,"Chick In","حوالة",2024,null,"May",5,null,"Room 105",null,"Foods"]
["Room 106","ALL HARD",null,null,"Algeria",null,null,null,"Chick Out",null,2025,null,"June",6,null,"Room 106"]
["Room 107",null,null,null,"American Samoa",null,null,null,null,null,2026,null,"July",7,null,"Room 107"]
["Room 108",null,null,null,"Andorra",null,null,null,null,null,2027,null,"August",8,null,"Room 108"]
["Room 109",null,null,null,"Angola",null,null,null,null,null,null,null,"September",9,null,"Room 109"]
["Room 110",null,null,null,"Anguilla",null,null,null,null,null,null,null,"October",10,null,"Room 110"]
["Room 111",null,null,null,"Antigua and Barbuda",null,null,null,null,null,null,null,"November",11,null,"Room 111",null,null,"Shanan Alsayed Mohamed Alsayed"]
["Room 112",null,null,null,"Argentina",null,null,null,null,null,null,null,"December",12,null,"Room 112",null,null,"Dr. Esther Roushdy Azmy\n"]
["Room 114",null,null,null,"Armenia",null,null,null,null,null,null,null,null,13,null,"Room 114"]
["Room 115",null,null,null,"Aruba",null,null,null,null,null,null,null,null,14,null,"Room 115"]
["Room 116",null,null,null,"Ascension Island",null,null,null,null,null,null,null,null,15,null,"Room 116"]
["Room 117",null,null,null,"Australia",null,null,null,null,null,null,null,null,16,null,"Room 117"]
[null,null,null,null,"Austria",null,null,null,null,null,null,null,null,17,null,"Room 118"]
[null,null,null,null,"Azerbaijan",null,null,null,null,null,null,null,null,18,null,"Room 119"]
[null,null,null,null,"Bahamas, The",null,null,null,null,null,null,null,null,19,null,"Room 120"]
[null,null,null,null,"Bahrain",null,null,null,null,null,null,null,null,20,null,"Room 121"]
[null,null,null,null,"Bangladesh",null,null,null,null,null,null,null,null,21,null,"Room 122"]
[null,null,null,null,"Barbados",null,null,null,null,null,null,null,null,22,null,"Room 123"]
[null,null,null,null,"Belarus",null,null,null,null,null,null,null,null,null,null,"Room 124"]
[null,null,null,null,"Belgium",null,null,null,null,null,null,null,null,null,null,"Room 125",null,null,"Dive center"]
[null,null,null,null,"Belize",null,null,null,null,null,null,null,null,null,null,"Room 126",null,null,"The pharmacy"]
[null,null,null,null,"Benin ",null,null,null,null,null,null,null,null,null,null,"Room 127",null,null,"Book Shop"]
[null,null,null,null,"Bermuda",null,null,null,null,null,null,null,null,null,null,"Room 128",null,null,"T-shirt"]
[null,null,null,null,"Bhutan",null,null,null,null,null,null,null,null,null,null,"Room 129",null,null,"papyrus"]
[null,null,null,null,"Bolivia"]
[null,null,null,null,"Bosnia and Herzegovina"]
[null,null,null,null,"Botswana"]
[null,null,null,null,"Brazil"]
[null,null,null,null,"Brunei"]
[null,null,null,null,"Bulgaria"]
[null,null,null,null,"Burkina Faso "]
[null,null,null,null,"Burundi"]
[null,null,null,null,"Egypt"]

{"sheet":"Sheet02","index":3,"n_rows":49,"n_cols":16,"rows_kept":49,"cut":false,"hidden":true,"merged":[[48,3,48,6],[48,7,48,9],[48,11,48,13],[21,17,24,21],[46,3,46,6],[46,7,46,9],[46,11,46,13],[47,3,47,6],[47,7,47,9],[47,11,47,13],[31,3,31,6],[31,7,31,9],[31,11,31,13],[32,3,32,6],[32,7,32,9],[32,11,32,13],[45,1,45,2],[45,3,45,6],[37,0,37,14],[38,2,38,3],[38,7,38,9],[38,10,38,13],[40,1,40,2],[40,3,40,7],[40,8,40,9],[40,11,40,13],[41,1,41,2],[41,3,41,7],[42,3,42,7],[43,3,43,7],[43,12,43,13],[30,3,30,6],[30,7,30,9],[30,11,30,13],[24,1,24,2],[24,3,24,7],[24,8,24,9],[24,11,24,13],[25,1,25,2],[25,3,25,7],[26,3,26,7],[27,3,27,7],[27,12,27,13],[29,1,29,2],[29,3,29,6],[19,1,19,4],[20,1,20,4],[21,0,21,14],[22,2,22,3],[22,7,22,9],[22,10,22,13],[12,3,12,6],[12,7,12,9],[12,11,12,13],[13,3,13,6],[13,7,13,9],[13,11,13,13],[11,3,11,6],[11,7,11,9],[11,11,11,13],[5,1,5,2],[5,3,5,7],[5,8,5,9],[5,11,5,13],[6,1,6,2],[6,3,6,7],[7,3,7,7],[8,3,8,7],[8,12,8,13],[10,1,10,2],[10,3,10,6],[0,1,0,4],[1,1,1,4],[2,0,2,14],[3,2,3,3],[3,7,3,9],[3,10,3,13]]}
[null,"Financial Management"]
[null,"Silver Beach El Qoseir"]
["RECEIPT"]
[null,"Date","25/09/2020",null,null,null,null,"Rent Receipt No.",null,null,"01-00002",null,null,null,null,{"$f":"[1]Settings!$B$22","v":"Blue"}]
[]
[null,"Received From",null,"Shanan Alsayed Mohamed Alsayed",null,null,null,null,"Amount",null,{"$f":"[1]Settings!$B$18","v":"€"},200]
[null,"Amount",null,"Two thousand and three hundred Euros"]
[null,null,null,null,null,null,null,null,"Paid By","x","Cash"]
[null,null,"For","Rent the diving center for the month of December",null,null,null,null,null,null,"Check #"]
[null,null,null,null,null,null,null,null,null,null,"Money Order"]
[null,"Received By",null,{"$f":"IF(ISBLANK([1]Settings!$B$5),\"\",[1]Settings!$B$5)","v":"Silver Beach Hotel"}]
[null,null,null,null,null,null,null,"Current Balance",null,null,{"$f":"[1]Settings!$B$18","v":"€"},2300]
[null,null,null,null,null,null,null,"Payment Amount",null,null,{"$f":"[1]Settings!$B$18","v":"€"},{"$f":"IF(ISBLANK(L6),\"\",L6)","v":200}]
[null,null,"Receive by",null,null,null,null,"Balance Due",null,null,{"$f":"[1]Settings!$B$18","v":"€"},{"$f":"IF(ISBLANK(L6),\"\",L12-L13)","v":2100}]
[]
[]
[]
[]
[]
[null,"Financial Management"]
[null,"Silver Beach El Qoseir"]
["RECEIPT"]
[null,"Date",{"$f":"IF(ISBLANK(C4),\"\",C4)","v":"25/09/2020"},null,null,null,null,"Rent Receipt No.",null,null,{"$f":"IF(ISBLANK(K4),\"\",K4)","v":"01-00002"}]
[]
[null,"Received From",null,{"$f":"IF(ISBLANK(D6),\"\",D6)","v":"Shanan Alsayed Mohamed Alsayed"},null,null,null,null,"Amount",null,{"$f":"[1]Settings!$B$18","v":"€"},2300]
[null,"Amount",null,{"$f":"IF(ISBLANK(D7),\"\",D7)","v":"Two thousand and three hundred Euros"}]
[null,null,null,null,null,null,null,null,"Paid By",{"$f":"IF(ISBLANK(J8),\"\",J8)","v":"x"},"Cash"]
[null,null,"For",{"$f":"IF(ISBLANK(D9),\"\",D9)","v":"Rent the diving center for the month of December"},null,null,null,null,null,{"$f":"IF(ISBLANK(J9),\"\",J9)","v":""},"Check #",null,{"$f":"IF(ISBLANK(M9),\"\",M9)","v":""}]
[null,null,null,null,null,null,null,null,null,{"$f":"IF(ISBLANK(J10),\"\",J10)","v":""},"Money Order"]
[null,"Received By",null,{"$f":"IF(ISBLANK(D11),\"\",D11)","v":"Silver Beach Hotel"}]
[null,null,null,null,null,null,null,"Current Balance",null,null,{"$f":"[1]Settings!$B$18","v":"€"},2300]
[null,null,null,{"$f":"IF(ISBLANK(D13),\"\",D13)","v":""},null,null,null,"Payment Amount",null,null,{"$f":"[1]Settings!$B$18","v":"€"},{"$f":"IF(ISBLANK(L25),\"\",L25)","v":2300}]
[null,null,"Receive by",{"$f":"IF(ISBLANK(D14),\"\",D14)","v":""},null,null,null,"Balance Due",null,null,{"$f":"[1]Settings!$B$18","v":"€"},{"$f":"IF(ISBLANK(L25),\"\",L31-L32)","v":0}]
[]
[]
[]
[]
["RECEIPT"]
[null,"Date",{"$f":"IF(ISBLANK(C4),\"\",C4)","v":"25/09/2020"},null,null,null,null,"Rent Receipt No.",null,null,{"$f":"IF(ISBLANK(K4),\"\",K4)","v":"01-00002"}]
[]
[null,"Received From",null,{"$f":"IF(ISBLANK(D6),\"\",D6)","v":"Shanan Alsayed Mohamed Alsayed"},null,null,null,null,"Amount",null,{"$f":"[1]Settings!$B$18","v":"€"},{"$f":"IF(ISBLANK(L6),\"\",L6)","v":200}]
[null,"Amount",null,{"$f":"IF(ISBLANK(D7),\"\",D7)","v":"Two thousand and three hundred Euros"}]
[null,null,null,null,null,null,null,null,"Paid By",{"$f":"IF(ISBLANK(J8),\"\",J8)","v":"x"},"Cash"]
[null,null,"For",{"$f":"IF(ISBLANK(D9),\"\",D9)","v":"Rent the diving center for the month of December"},null,null,null,null,null,{"$f":"IF(ISBLANK(J9),\"\",J9)","v":""},"Check #",null,{"$f":"IF(ISBLANK(M9),\"\",M9)","v":""}]
[null,null,null,null,null,null,null,null,null,{"$f":"IF(ISBLANK(J10),\"\",J10)","v":""},"Money Order"]
[null,"Received By",null,{"$f":"IF(ISBLANK(D11),\"\",D11)","v":"Silver Beach Hotel"}]
[null,null,null,null,null,null,null,"Current Balance",null,null,{"$f":"[1]Settings!$B$18","v":"€"},150]
[null,null,null,{"$f":"IF(ISBLANK(D13),\"\",D13)","v":""},null,null,null,"Payment Amount",null,null,{"$f":"[1]Settings!$B$18","v":"€"},{"$f":"IF(ISBLANK(L41),\"\",L41)","v":200}]
[null,null,null,{"$f":"IF(ISBLANK(D14),\"\",D14)","v":""},null,null,null,"Balance Due",null,null,{"$f":"[1]Settings!$B$18","v":"€"},{"$f":"IF(ISBLANK(L41),\"\",L47-L48)","v":-50}]

{"sheet":"Sheet05","index":4,"n_rows":2,"n_cols":8,"rows_kept":2,"cut":false,"hidden":true,"merged":[]}
["Date","Receipt No","Name"," Rent Type","Amount","Amount Piad","Balance","Payment Type"]
["2020-09-25","01-00001","Shanan Alsayed Mohamed Alsayed","Dive center","4000","2000","2000.00","Cash"]

{"sheet":"Sheet5","index":5,"n_rows":2,"n_cols":6,"rows_kept":2,"cut":false,"hidden":true,"merged":[]}
["Date","Receipt No","Received From","Description","Payment Type","Amount"]
["28/01/2021","01-00001","Alaa","income","Cash",1500]

{"sheet":"Sheet8","index":6,"n_rows":1064,"n_cols":31,"rows_kept":1064,"cut":false,"hidden":false,"merged":[[8,6,9,6],[0,0,0,1],[0,5,0,6],[1,0,1,1],[2,1,2,5],[5,5,5,6],[6,5,6,6],[8,0,9,0],[8,1,9,1],[8,2,9,2],[8,3,9,3],[8,4,8,5]]}
[]
[]
[null,null,null,null,null,null,null,null,null,null,null,null,null,null,null,null,null,null,null,null,"ايراد نقدى"]
[null,null,null,null,null,null,null,null,null,null,null,null,null,null,null,null,null,null,null,null,"ايراد بشيكات",null,null,null,null,null,null,null,null,"ايراد بشيكات","أجور عمال"]
["حوالات بنكية :",{"$f":"SUMIF(C11:C1064,\"*تحويل*\",F11:F1064)","v":0},null,"إيـداعـات بـنـكـية :",{"$f":"SUMIF(C11:C1064,\"*ايداع*\",F11:F1064)","v":0},"الرصيد :",{"$f":"B8-F7-E5-B5","v":1395},null,null,null,null,null,null,null,null,null,null,null,null,null,"ايداع شيك",null,null,null,null,null,null,null,null,"تحويل للحساب","مصروفات صيانة"]
["ايرادات نقدية :",{"$f":"SUMIF(C11:C1064,\"*ايراد نقدى*\",E11:E1064)","v":2620},null,"جملة مصروفات الصيانة :",{"$f":"SUMIF(C11:C1064,\"*مصروفات*\",F11:F1064)","v":1225},"جمله المصروفات :",null,null,null,null,null,null,null,null,null,null,null,null,null,null,"ايداع نقدى",null,null,null,null,null,null,null,null,"ايراد نقدى","مصروفات عامة"]
["ايرادات بشيكات :",{"$f":"SUMIF(C11:C1064,\"*ايراد بشيكات*\",E11:E1064)","v":0},null,"جملة الرواتب المدفوعة :",{"$f":"SUMIF(C11:C1064,\"*صرف رواتب*\",F11:F1064)","v":0},{"$f":"SUM(E6:E8)","v":1225},null,null,null,null,null,null,null,null,null,null,null,null,null,null,"تحويل للحساب",null,null,null,null,null,null,null,null,null,"خروج مستأجر"]
["جملة الايرادات :",{"$f":"B6+B7","v":2620},null,"تصفيات خروج مستاجرين :",{"$f":"SUMIF(C12:C1065,\"*خروج مستأجر*\",F12:F1065)","v":0},"رصيد مرحل :",2000,null,null,null,null,null,null,null,null,null,null,null,null,null,"مصروفات "]
["التاريخ ","رقم السند","نوع السند","البيان","العملية",null,"الرصيد"]
[null,null,null,null,"مدين ","دائن"]
["2021-01-27",1,"ايراد نقدى","ايراد غرفه 110",1500,null,{"$f":"IF(AND(E11=\"\",F11=\"\"),\"\",G8+F11-E11)","v":500}]
["27/01/2021",2,"ايراد نقدى","ايجار الصيدليه",1000]
["27/01/2021",3,"مصروفات ","مشتريات",null,500]
["27/01/2021",4,"مصروفات ","صيانه موتور",null,250]
["27/01/2021",5,"مصروفات ","مشتريات",null,125]
["27/01/2021",6,"أجور عمال","عماله يوميه",null,300]
["28/01/2020",7,"مصروفات صيانة","صيانه معدات",null,350]
["28/01/2021",11," ايراد نقدى","gggggg",120]
[null,null,null,null,null,null,{"$f":"IF(AND(E19=\"\",F19=\"\"),\"\",G18+F19-E19)","v":""}]
[null,null,null,null,null,null,""]
[null,null,null,null,null,null,""]
[null,null,null,null,null,null,""]
[null,null,null,null,null,null,""]
[null,null,null,null,null,null,""]
[null,null,null,null,null,null,""]
[null,null,null,null,null,null,""]
[null,null,null,null,null,null,""]
[null,null,null,null,null,null,""]
[null,null,null,null,null,null,""]
[null,null,null,null,null,null,""]
[null,null,null,null,null,null,""]
[null,null,null,null,null,null,""]
[null,null,null,null,null,null,""]
[null,null,null,null,null,null,""]
[null,null,null,null,null,null,""]
[null,null,null,null,null,null,""]
[null,null,null,null,null,null,""]
[null,null,null,null,null,null,""]
[null,null,null,null,null,null,""]
[null,null,null,null,null,null,""]
[null,null,null,null,null,null,""]
[null,null,null,null,null,null,""]
[null,null,null,null,null,null,""]
[null,null,null,null,null,null,""]
[null,null,null,null,null,null,""]
[null,null,null,null,null,null,""]
[null,null,null,null,null,null,""]
[null,null,null,null,null,null,""]
[null,null,null,null,null,null,""]
[null,null,null,null,null,null,""]
[null,null,null,null,null,null,""]
[null,null,null,null,null,null,""]
[null,null,null,null,null,null,""]
[null,null,null,null,null,null,""]
[null,null,null,null,null,null,""]
[null,null,null,null,null,null,""]
[null,null,null,null,null,null,""]
[null,null,null,null,null,null,""]
[null,null,null,null,null,null,""]
[null,null,null,null,null,null,""]
[null,null,null,null,null,null,""]
[null,null,null,null,null,null,""]
[null,null,null,null,null,null,""]
[null,null,null,null,null,null,""]
[null,null,null,null,null,null,""]
[null,null,null,null,null,null,""]
[null,null,null,null,null,null,""]
[null,null,null,null,null,null,""]
[null,null,null,null,null,null,""]
[null,null,null,null,null,null,""]
[null,null,null,null,null,null,""]
[null,null,null,null,null,null,""]
[null,null,null,null,null,null,""]
[null,null,null,null,null,null,""]
[null,null,null,null,null,null,""]
[null,null,null,null,null,null,""]
[null,null,null,null,null,null,""]
[null,null,null,null,null,null,""]
[]
[]
[]
[]
[]
[]
[null,null,null,null,null,null,{"$f":"IF(AND(E85=\"\",F85=\"\"),\"\",G84+F85-E85)","v":""}]
[null,null,null,null,null,null,""]
[null,null,null,null,null,null,""]
[null,null,null,null,null,null,""]
[null,null,null,null,null,null,""]
[null,null,null,null,null,null,""]
[null,null,null,null,null,null,""]
[null,null,null,null,null,null,""]
[null,null,null,null,null,null,""]
[null,null,null,null,null,null,""]
[null,null,null,null,null,null,""]
[null,null,null,null,null,null,""]
[null,null,null,null,null,null,""]
[null,null,null,null,null,null,""]
[null,null,null,null,null,null,""]
[null,null,null,null,null,null,""]
[null,null,null,null,null,null,""]
[null,null,null,null,null,null,""]
[null,null,null,null,null,null,""]
[null,null,null,null,null,null,""]
[null,null,null,null,null,null,""]
[null,null,null,null,null,null,""]
[null,null,null,null,null,null,""]
[null,null,null,null,null,null,""]
[null,null,null,null,null,null,""]
[null,null,null,null,null,null,""]
[null,null,null,null,null,null,""]
[null,null,null,null,null,null,""]
[null,null,null,null,null,null,""]
[null,null,null,null,null,null,""]
[null,null,null,null,null,null,""]
[null,null,null,null,null,null,""]
[null,null,null,null,null,null,""]
[null,null,null,null,null,null,""]
[null,null,null,null,null,null,""]
[null,null,null,null,null,null,""]
[null,null,null,null,null,null,""]
[null,null,null,null,null,null,""]
[null,null,null,null,null,null,""]
[null,null,null,null,null,null,""]
[null,null,null,null,null,null,""]
[null,null,null,null,null,null,""]
[null,null,null,null,null,null,""]
[null,null,null,null,null,null,""]
[null,null,null,null,null,null,""]
[null,null,null,null,null,null,""]
[null,null,null,null,null,null,""]
[null,null,null,null,null,null,""]
[null,null,null,null,null,null,""]
[null,null,null,null,null,null,""]
[null,null,null,null,null,null,""]
[null,null,null,null,null,null,""]
[null,null,null,null,null,null,""]
[null,null,null,null,null,null,""]
[null,null,null,null,null,null,""]
[null,null,null,null,null,null,""]
[null,null,null,null,null,null,""]
[null,null,null,null,null,null,""]
[null,null,null,null,null,null,""]
[null,null,null,null,null,null,""]
[null,null,null,null,null,null,""]
[null,null,null,null,null,null,""]
[null,null,null,null,null,null,""]
[null,null,null,null,null,null,""]
[null,null,null,null,null,null,{"$f":"IF(AND(E149=\"\",F149=\"\"),\"\",G148+F149-E149)","v":""}]
[null,null,null,null,null,null,""]
[null,null,null,null,null,null,""]
[null,null,null,null,null,null,""]
[null,null,null,null,null,null,""]
[null,null,null,null,null,null,""]
[null,null,null,null,null,null,""]
[null,null,null,null,null,null,""]
[null,null,null,null,null,null,""]
[null,null,null,null,null,null,""]
[null,null,null,null,null,null,""]
[null,null,null,null,null,null,""]
[null,null,null,null,null,null,""]
[null,null,null,null,null,null,""]
[null,null,null,null,null,null,""]
[null,null,null,null,null,null,""]
[null,null,null,null,null,null,""]
[null,null,null,null,null,null,""]
[null,null,null,null,null,null,""]
[null,null,null,null,null,null,""]
[null,null,null,null,null,null,""]
[null,null,null,null,null,null,""]
[null,null,null,null,null,null,""]
[null,null,null,null,null,null,""]
[null,null,null,null,null,null,""]
[null,null,null,null,null,null,""]
[null,null,null,null,null,null,""]
[null,null,null,null,null,null,""]
[null,null,null,null,null,null,""]
[null,null,null,null,null,null,""]
[null,null,null,null,null,null,""]
[null,null,null,null,null,null,""]
[null,null,null,null,null,null,""]
[null,null,null,null,null,null,""]
[null,null,null,null,null,null,""]
[null,null,null,null,null,null,""]
[null,null,null,null,null,null,""]
[null,null,null,null,null,null,""]
[null,null,null,null,null,null,""]
[null,null,null,null,null,null,""]
[null,null,null,null,null,null,""]
[null,null,null,null,null,null,""]
[null,null,null,null,null,null,""]
[null,null,null,null,null,null,""]
[null,null,null,null,null,null,""]
[null,null,null,null,null,null,""]
[null,null,null,null,null,null,""]
[null,null,null,null,null,null,""]
[null,null,null,null,null,null,""]
[null,null,null,null,null,null,""]
[null,null,null,null,null,null,""]
[null,null,null,null,null,null,""]
[null,null,null,null,null,null,""]
[null,null,null,null,null,null,""]
[null,null,null,null,null,null,""]
[null,null,null,null,null,null,""]
[null,null,null,null,null,null,""]
[null,null,null,null,null,null,""]
[null,null,null,null,null,null,""]
[null,null,null,null,null,null,""]
[null,null,null,null,null,null,""]
[null,null,null,null,null,null,""]
[null,null,null,null,null,null,""]
[null,null,null,null,null,null,""]
[null,null,null,null,null,null,{"$f":"IF(AND(E213=\"\",F213=\"\"),\"\",G212+F213-E213)","v":""}]
[null,null,null,null,null,null,""]
[null,null,null,null,null,null,""]
[null,null,null,null,null,null,""]
[null,null,null,null,null,null,""]
[null,null,null,null,null,null,""]
[null,null,null,null,null,null,""]
[null,null,null,null,null,null,""]
[null,null,null,null,null,null,""]
[null,null,null,null,null,null,""]
[null,null,null,null,null,null,""]
[null,null,null,null,null,null,""]
[null,null,null,null,null,null,""]
[null,null,null,null,null,null,""]
[null,null,null,null,null,null,""]
[null,null,null,null,null,null,""]
[null,null,null,null,null,null,""]
[null,null,null,null,null,null,""]
[null,null,null,null,null,null,""]
[null,null,null,null,null,null,""]
[null,null,null,null,null,null,""]
[null,null,null,null,null,null,""]
[null,null,null,null,null,null,""]
[null,null,null,null,null,null,""]
[null,null,null,null,null,null,""]
[null,null,null,null,null,null,""]
[null,null,null,null,null,null,""]
[null,null,null,null,null,null,""]
[null,null,null,null,null,null,""]
[null,null,null,null,null,null,""]
[null,null,null,null,null,null,""]
[null,null,null,null,null,null,""]
[null,null,null,null,null,null,""]
[null,null,null,null,null,null,""]
[null,null,null,null,null,null,""]
[null,null,null,null,null,null,""]
[null,null,null,null,null,null,""]
[null,null,null,null,null,null,""]
[null,null,null,null,null,null,""]
[null,null,null,null,null,null,""]
[null,null,null,null,null,null,""]
[null,null,null,null,null,null,""]
[null,null,null,null,null,null,""]
[null,null,null,null,null,null,""]
[null,null,null,null,null,null,""]
[null,null,null,null,null,null,""]
[null,null,null,null,null,null,""]
[null,null,null,null,null,null,""]
[null,null,null,null,null,null,""]
[null,null,null,null,null,null,""]
[null,null,null,null,null,null,""]
[null,null,null,null,null,null,""]
[null,null,null,null,null,null,""]
[null,null,null,null,null,null,""]
[null,null,null,null,null,null,""]
[null,null,null,null,null,null,""]
[null,null,null,null,null,null,""]
[null,null,null,null,null,null,""]
[null,null,null,null,null,null,""]
[null,null,null,null,null,null,""]
[null,null,null,null,null,null,""]
[null,null,null,null,null,null,""]
[null,null,null,null,null,null,""]
[null,null,null,null,null,null,""]
[null,null,null,null,null,null,{"$f":"IF(AND(E277=\"\",F277=\"\"),\"\",G276+F277-E277)","v":""}]
[null,null,null,null,null,null,""]
[null,null,null,null,null,null,""]
[null,null,null,null,null,null,""]
[null,null,null,null,null,null,""]
[null,null,null,null,null,null,""]
[null,null,null,null,null,null,""]
[null,null,null,null,null,null,""]
[null,null,null,null,null,null,""]
[null,null,null,null,null,null,""]
[null,null,null,null,null,null,""]
[null,null,null,null,null,null,""]
[null,null,null,null,null,null,""]
[null,null,null,null,null,null,""]
[null,null,null,null,null,null,""]
[null,null,null,null,null,null,""]
[null,null,null,null,null,null,""]
[null,null,null,null,null,null,""]
[null,null,null,null,null,null,""]
[null,null,null,null,null,null,""]
[null,null,null,null,null,null,""]
[null,null,null,null,null,null,""]
[null,null,null,null,null,null,""]
[null,null,null,null,null,null,""]
[null,null,null,null,null,null,""]
[null,null,null,null,null,null,""]
[null,null,null,null,null,null,""]
[null,null,null,null,null,null,""]
[null,null,null,null,null,null,""]
[null,null,null,null,null,null,""]
[null,null,null,null,null,null,""]
[null,null,null,null,null,null,""]
[null,null,null,null,null,null,""]
[null,null,null,null,null,null,""]
[null,null,null,null,null,null,""]
[null,null,null,null,null,null,""]
[null,null,null,null,null,null,""]
[null,null,null,null,null,null,""]
[null,null,null,null,null,null,""]
[null,null,null,null,null,null,""]
[null,null,null,null,null,null,""]
[null,null,null,null,null,null,""]
[null,null,null,null,null,null,""]
[null,null,null,null,null,null,""]
[null,null,null,null,null,null,""]
[null,null,null,null,null,null,""]
[null,null,null,null,null,null,""]
[null,null,null,null,null,null,""]
[null,null,null,null,null,null,""]
[null,null,null,null,null,null,""]
[null,null,null,null,null,null,""]
[null,null,null,null,null,null,""]
[null,null,null,null,null,null,""]
[null,null,null,null,null,null,""]
[null,null,null,null,null,null,""]
[null,null,null,null,null,null,""]
[null,null,null,null,null,null,""]
[null,null,null,null,null,null,""]
[null,null,null,null,null,null,""]
[null,null,null,null,null,null,""]
[null,null,null,null,null,null,""]
[null,null,null,null,null,null,""]
[null,null,null,null,null,null,""]
[null,null,null,null,null,null,""]
[null,null,null,null,null,null,{"$f":"IF(AND(E341=\"\",F341=\"\"),\"\",G340+F341-E341)","v":""}]
[null,null,null,null,null,null,""]
[null,null,null,null,null,null,""]
[null,null,null,null,null,null,""]
[null,null,null,null,null,null,""]
[null,null,null,null,null,null,""]
[null,null,null,null,null,null,""]
[null,null,null,null,null,null,""]
[null,null,null,null,null,null,""]
[null,null,null,null,null,null,""]
[null,null,null,null,null,null,""]
[null,null,null,null,null,null,""]
[null,null,null,null,null,null,""]
[null,null,null,null,null,null,""]
[null,null,null,null,null,null,""]
[null,null,null,null,null,null,""]
[null,null,null,null,null,null,""]
[null,null,null,null,null,null,""]
[null,null,null,null,null,null,""]
[null,null,null,null,null,null,""]
[null,null,null,null,null,null,""]
[null,null,null,null,null,null,""]
[null,null,null,null,null,null,""]
[null,null,null,null,null,null,""]
[null,null,null,null,null,null,""]
[null,null,null,null,null,null,""]
[null,null,null,null,null,null,""]
[null,null,null,null,null,null,""]
[null,null,null,null,null,null,""]
[null,null,null,null,null,null,""]
[null,null,null,null,null,null,""]
[null,null,null,null,null,null,""]
[null,null,null,null,null,null,""]
[null,null,null,null,null,null,""]
[null,null,null,null,null,null,""]
[null,null,null,null,null,null,""]
[null,null,null,null,null,null,""]
[null,null,null,null,null,null,""]
[null,null,null,null,null,null,""]
[null,null,null,null,null,null,""]
[null,null,null,null,null,null,""]
[null,null,null,null,null,null,""]
[null,null,null,null,null,null,""]
[null,null,null,null,null,null,""]
[null,null,null,null,null,null,""]
[null,null,null,null,null,null,""]
[null,null,null,null,null,null,""]
[null,null,null,null,null,null,""]
[null,null,null,null,null,null,""]
[null,null,null,null,null,null,""]
[null,null,null,null,null,null,""]
[null,null,null,null,null,null,""]
[null,null,null,null,null,null,""]
[null,null,null,null,null,null,""]
[null,null,null,null,null,null,""]
[null,null,null,null,null,null,""]
[null,null,null,null,null,null,""]
[null,null,null,null,null,null,""]
[null,null,null,null,null,null,""]
[null,null,null,null,null,null,""]
[null,null,null,null,null,null,""]
[null,null,null,null,null,null,""]
[null,null,null,null,null,null,""]
[null,null,null,null,null,null,""]
[null,null,null,null,null,null,{"$f":"IF(AND(E405=\"\",F405=\"\"),\"\",G404+F405-E405)","v":""}]
[null,null,null,null,null,null,""]
[null,null,null,null,null,null,""]
[null,null,null,null,null,null,""]
[null,null,null,null,null,null,""]
[null,null,null,null,null,null,""]
[null,null,null,null,null,null,""]
[null,null,null,null,null,null,""]
[null,null,null,null,null,null,""]
[null,null,null,null,null,null,""]
[null,null,null,null,null,null,""]
[null,null,null,null,null,null,""]
[null,null,null,null,null,null,""]
[null,null,null,null,null,null,""]
[null,null,null,null,null,null,""]
[null,null,null,null,null,null,""]
[null,null,null,null,null,null,""]
[null,null,null,null,null,null,""]
[null,null,null,null,null,null,""]
[null,null,null,null,null,null,""]
[null,null,null,null,null,null,""]
[null,null,null,null,null,null,""]
[null,null,null,null,null,null,""]
[null,null,null,null,null,null,""]
[null,null,null,null,null,null,""]
[null,null,null,null,null,null,""]
[null,null,null,null,null,null,""]
[null,null,null,null,null,null,""]
[null,null,null,null,null,null,""]
[null,null,null,null,null,null,""]
[null,null,null,null,null,null,""]
[null,null,null,null,null,null,""]
[null,null,null,null,null,null,""]
[null,null,null,null,null,null,""]
[null,null,null,null,null,null,""]
[null,null,null,null,null,null,""]
[null,null,null,null,null,null,""]
[null,null,null,null,null,null,""]
[null,null,null,null,null,null,""]
[null,null,null,null,null,null,""]
[null,null,null,null,null,null,""]
[null,null,null,null,null,null,""]
[null,null,null,null,null,null,""]
[null,null,null,null,null,null,""]
[null,null,null,null,null,null,""]
[null,null,null,null,null,null,""]
[null,null,null,null,null,null,""]
[null,null,null,null,null,null,""]
[null,null,null,null,null,null,""]
[null,null,null,null,null,null,""]
[null,null,null,null,null,null,""]
[null,null,null,null,null,null,""]
[null,null,null,null,null,null,""]
[null,null,null,null,null,null,""]
[null,null,null,null,null,null,""]
[null,null,null,null,null,null,""]
[null,null,null,null,null,null,""]
[null,null,null,null,null,null,""]
[null,null,null,null,null,null,""]
[null,null,null,null,null,null,""]
[null,null,null,null,null,null,""]
[null,null,null,null,null,null,""]
[null,null,null,null,null,null,""]
[null,null,null,null,null,null,""]
[null,null,null,null,null,null,{"$f":"IF(AND(E469=\"\",F469=\"\"),\"\",G468+F469-E469)","v":""}]
[null,null,null,null,null,null,""]
[null,null,null,null,null,null,""]
[null,null,null,null,null,null,""]
[null,null,null,null,null,null,""]
[null,null,null,null,null,null,""]
[null,null,null,null,null,null,""]
[null,null,null,null,null,null,""]
[null,null,null,null,null,null,""]
[null,null,null,null,null,null,""]
[null,null,null,null,null,null,""]
[null,null,null,null,null,null,""]
[null,null,null,null,null,null,""]
[null,null,null,null,null,null,""]
[null,null,null,null,null,null,""]
[null,null,null,null,null,null,""]
[null,null,null,null,null,null,""]
[null,null,null,null,null,null,""]
[null,null,null,null,null,null,""]
[null,null,null,null,null,null,""]
[null,null,null,null,null,null,""]
[null,null,null,null,null,null,""]
[null,null,null,null,null,null,""]
[null,null,null,null,null,null,""]
[null,null,null,null,null,null,""]
[null,null,null,null,null,null,""]
[null,null,null,null,null,null,""]
[null,null,null,null,null,null,""]
[null,null,null,null,null,null,""]
[null,null,null,null,null,null,""]
[null,null,null,null,null,null,""]
[null,null,null,null,null,null,""]
[null,null,null,null,null,null,""]
[null,null,null,null,null,null,""]
[null,null,null,null,null,null,""]
[null,null,null,null,null,null,""]
[null,null,null,null,null,null,""]
[null,null,null,null,null,null,""]
[null,null,null,null,null,null,""]
[null,null,null,null,null,null,""]
[null,null,null,null,null,null,""]
[null,null,null,null,null,null,""]
[null,null,null,null,null,null,""]
[null,null,null,null,null,null,""]
[null,null,null,null,null,null,""]
[null,null,null,null,null,null,""]
[null,null,null,null,null,null,""]
[null,null,null,null,null,null,""]
[null,null,null,null,null,null,""]
[null,null,null,null,null,null,""]
[null,null,null,null,null,null,""]
[null,null,null,null,null,null,""]
[null,null,null,null,null,null,""]
[null,null,null,null,null,null,""]
[null,null,null,null,null,null,""]
[null,null,null,null,null,null,""]
[null,null,null,null,null,null,""]
[null,null,null,null,null,null,""]
[null,null,null,null,null,null,""]
[null,null,null,null,null,null,""]
[null,null,null,null,null,null,""]
[null,null,null,null,null,null,""]
[null,null,null,null,null,null,""]
[null,null,null,null,null,null,""]
[null,null,null,null,null,null,{"$f":"IF(AND(E533=\"\",F533=\"\"),\"\",G532+F533-E533)","v":""}]
[null,null,null,null,null,null,""]
[null,null,null,null,null,null,""]
[null,null,null,null,null,null,""]
[null,null,null,null,null,null,""]
[null,null,null,null,null,null,""]
[null,null,null,null,null,null,""]
[null,null,null,null,null,null,""]
[null,null,null,null,null,null,""]
[null,null,null,null,null,null,""]
[null,null,null,null,null,null,""]
[null,null,null,null,null,null,""]
[null,null,null,null,null,null,""]
[null,null,null,null,null,null,""]
[null,null,null,null,null,null,""]
[null,null,null,null,null,null,""]
[null,null,null,null,null,null,""]
[null,null,null,null,null,null,""]
[null,null,null,null,null,null,""]
[null,null,null,null,null,null,""]
[null,null,null,null,null,null,""]
[null,null,null,null,null,null,""]
[null,null,null,null,null,null,""]
[null,null,null,null,null,null,""]
[null,null,null,null,null,null,""]
[null,null,null,null,null,null,""]
[null,null,null,null,null,null,""]
[null,null,null,null,null,null,""]
[null,null,null,null,null,null,""]
[null,null,null,null,null,null,""]
[null,null,null,null,null,null,""]
[null,null,null,null,null,null,""]
[null,null,null,null,null,null,""]
[null,null,null,null,null,null,""]
[null,null,null,null,null,null,""]
[null,null,null,null,null,null,""]
[null,null,null,null,null,null,""]
[null,null,null,null,null,null,""]
[null,null,null,null,null,null,""]
[null,null,null,null,null,null,""]
[null,null,null,null,null,null,""]
[null,null,null,null,null,null,""]
[null,null,null,null,null,null,""]
[null,null,null,null,null,null,""]
[null,null,null,null,null,null,""]
[null,null,null,null,null,null,""]
[null,null,null,null,null,null,""]
[null,null,null,null,null,null,""]
[null,null,null,null,null,null,""]
[null,null,null,null,null,null,""]
[null,null,null,null,null,null,""]
[null,null,null,null,null,null,""]
[null,null,null,null,null,null,""]
[null,null,null,null,null,null,""]
[null,null,null,null,null,null,""]
[null,null,null,null,null,null,""]
[null,null,null,null,null,null,""]
[null,null,null,null,null,null,""]
[null,null,null,null,null,null,""]
[null,null,null,null,null,null,""]
[null,null,null,null,null,null,""]
[null,null,null,null,null,null,""]
[null,null,null,null,null,null,""]
[null,null,null,null,null,null,""]
[null,null,null,null,null,null,{"$f":"IF(AND(E597=\"\",F597=\"\"),\"\",G596+F597-E597)","v":""}]
[null,null,null,null,null,null,""]
[null,null,null,null,null,null,""]
[null,null,null,null,null,null,""]
[null,null,null,null,null,null,""]
[null,null,null,null,null,null,""]
[null,null,null,null,null,null,""]
[null,null,null,null,null,null,""]
[null,null,null,null,null,null,""]
[null,null,null,null,null,null,""]
[null,null,null,null,null,null,""]
[null,null,null,null,null,null,""]
[null,null,null,null,null,null,""]
[null,null,null,null,null,null,""]
[null,null,null,null,null,null,""]
[null,null,null,null,null,null,""]
[null,null,null,null,null,null,""]
[null,null,null,null,null,null,""]
[null,null,null,null,null,null,""]
[null,null,null,null,null,null,""]
[null,null,null,null,null,null,""]
[null,null,null,null,null,null,""]
[null,null,null,null,null,null,""]
[null,null,null,null,null,null,""]
[null,null,null,null,null,null,""]
[null,null,null,null,null,null,""]
[null,null,null,null,null,null,""]
[null,null,null,null,null,null,""]
[null,null,null,null,null,null,""]
[null,null,null,null,null,null,""]
[null,null,null,null,null,null,""]
[null,null,null,null,null,null,""]
[null,null,null,null,null,null,""]
[null,null,null,null,null,null,""]
[null,null,null,null,null,null,""]
[null,null,null,null,null,null,""]
[null,null,null,null,null,null,""]
[null,null,null,null,null,null,""]
[null,null,null,null,null,null,""]
[null,null,null,null,null,null,""]
[null,null,null,null,null,null,""]
[null,null,null,null,null,null,""]
[null,null,null,null,null,null,""]
[null,null,null,null,null,null,""]
[null,null,null,null,null,null,""]
[null,null,null,null,null,null,""]
[null,null,null,null,null,null,""]
[null,null,null,null,null,null,""]
[null,null,null,null,null,null,""]
[null,null,null,null,null,null,""]
[null,null,null,null,null,null,""]
[null,null,null,null,null,null,""]
[null,null,null,null,null,null,""]
[null,null,null,null,null,null,""]
[null,null,null,null,null,null,""]
[null,null,null,null,null,null,""]
[null,null,null,null,null,null,""]
[null,null,null,null,null,null,""]
[null,null,null,null,null,null,""]
[null,null,null,null,null,null,""]
[null,null,null,null,null,null,""]
[null,null,null,null,null,null,""]
[null,null,null,null,null,null,""]
[null,null,null,null,null,null,""]
[null,null,null,null,null,null,{"$f":"IF(AND(E661=\"\",F661=\"\"),\"\",G660+F661-E661)","v":""}]
[null,null,null,null,null,null,""]
[null,null,null,null,null,null,""]
[null,null,null,null,null,null,""]
[null,null,null,null,null,null,""]
[null,null,null,null,null,null,""]
[null,null,null,null,null,null,""]
[null,null,null,null,null,null,""]
[null,null,null,null,null,null,""]
[null,null,null,null,null,null,""]
[null,null,null,null,null,null,""]
[null,null,null,null,null,null,""]
[null,null,null,null,null,null,""]
[null,null,null,null,null,null,""]
[null,null,null,null,null,null,""]
[null,null,null,null,null,null,""]
[null,null,null,null,null,null,""]
[null,null,null,null,null,null,""]
[null,null,null,null,null,null,""]
[null,null,null,null,null,null,""]
[null,null,null,null,null,null,""]
[null,null,null,null,null,null,""]
[null,null,null,null,null,null,""]
[null,null,null,null,null,null,""]
[null,null,null,null,null,null,""]
[null,null,null,null,null,null,""]
[null,null,null,null,null,null,""]
[null,null,null,null,null,null,""]
[null,null,null,null,null,null,""]
[null,null,null,null,null,null,""]
[null,null,null,null,null,null,""]
[null,null,null,null,null,null,""]
[null,null,null,null,null,null,""]
[null,null,null,null,null,null,""]
[null,null,null,null,null,null,""]
[null,null,null,null,null,null,""]
[null,null,null,null,null,null,""]
[null,null,null,null,null,null,""]
[null,null,null,null,null,null,""]
[null,null,null,null,null,null,""]
[null,null,null,null,null,null,""]
[null,null,null,null,null,null,""]
[null,null,null,null,null,null,""]
[null,null,null,null,null,null,""]
[null,null,null,null,null,null,""]
[null,null,null,null,null,null,""]
[null,null,null,null,null,null,""]
[null,null,null,null,null,null,""]
[null,null,null,null,null,null,""]
[null,null,null,null,null,null,""]
[null,null,null,null,null,null,""]
[null,null,null,null,null,null,""]
[null,null,null,null,null,null,""]
[null,null,null,null,null,null,""]
[null,null,null,null,null,null,""]
[null,null,null,null,null,null,""]
[null,null,null,null,null,null,""]
[null,null,null,null,null,null,""]
[null,null,null,null,null,null,""]
[null,null,null,null,null,null,""]
[null,null,null,null,null,null,""]
[null,null,null,null,null,null,""]
[null,null,null,null,null,null,""]
[null,null,null,null,null,null,""]
[null,null,null,null,null,null,{"$f":"IF(AND(E725=\"\",F725=\"\"),\"\",G724+F725-E725)","v":""}]
[null,null,null,null,null,null,""]
[null,null,null,null,null,null,""]
[null,null,null,null,null,null,""]
[null,null,null,null,null,null,""]
[null,null,null,null,null,null,""]
[null,null,null,null,null,null,""]
[null,null,null,null,null,null,""]
[null,null,null,null,null,null,""]
[null,null,null,null,null,null,""]
[null,null,null,null,null,null,""]
[null,null,null,null,null,null,""]
[null,null,null,null,null,null,""]
[null,null,null,null,null,null,""]
[null,null,null,null,null,null,""]
[null,null,null,null,null,null,""]
[null,null,null,null,null,null,""]
[null,null,null,null,null,null,""]
[null,null,null,null,null,null,""]
[null,null,null,null,null,null,""]
[null,null,null,null,null,null,""]
[null,null,null,null,null,null,""]
[null,null,null,null,null,null,""]
[null,null,null,null,null,null,""]
[null,null,null,null,null,null,""]
[null,null,null,null,null,null,""]
[null,null,null,null,null,null,""]
[null,null,null,null,null,null,""]
[null,null,null,null,null,null,""]
[null,null,null,null,null,null,""]
[null,null,null,null,null,null,""]
[null,null,null,null,null,null,""]
[null,null,null,null,null,null,""]
[null,null,null,null,null,null,""]
[null,null,null,null,null,null,""]
[null,null,null,null,null,null,""]
[null,null,null,null,null,null,""]
[null,null,null,null,null,null,""]
[null,null,null,null,null,null,""]
[null,null,null,null,null,null,""]
[null,null,null,null,null,null,""]
[null,null,null,null,null,null,""]
[null,null,null,null,null,null,""]
[null,null,null,null,null,null,""]
[null,null,null,null,null,null,""]
[null,null,null,null,null,null,""]
[null,null,null,null,null,null,""]
[null,null,null,null,null,null,""]
[null,null,null,null,null,null,""]
[null,null,null,null,null,null,""]
[null,null,null,null,null,null,""]
[null,null,null,null,null,null,""]
[null,null,null,null,null,null,""]
[null,null,null,null,null,null,""]
[null,null,null,null,null,null,""]
[null,null,null,null,null,null,""]
[null,null,null,null,null,null,""]
[null,null,null,null,null,null,""]
[null,null,null,null,null,null,""]
[null,null,null,null,null,null,""]
[null,null,null,null,null,null,""]
[null,null,null,null,null,null,""]
[null,null,null,null,null,null,""]
[null,null,null,null,null,null,""]
[null,null,null,null,null,null,{"$f":"IF(AND(E789=\"\",F789=\"\"),\"\",G788+F789-E789)","v":""}]
[null,null,null,null,null,null,""]
[null,null,null,null,null,null,""]
[null,null,null,null,null,null,""]
[null,null,null,null,null,null,""]
[null,null,null,null,null,null,""]
[null,null,null,null,null,null,""]
[null,null,null,null,null,null,""]
[null,null,null,null,null,null,""]
[null,null,null,null,null,null,""]
[null,null,null,null,null,null,""]
[null,null,null,null,null,null,""]
[null,null,null,null,null,null,""]
[null,null,null,null,null,null,""]
[null,null,null,null,null,null,""]
[null,null,null,null,null,null,""]
[null,null,null,null,null,null,""]
[null,null,null,null,null,null,""]
[null,null,null,null,null,null,""]
[null,null,null,null,null,null,""]
[null,null,null,null,null,null,""]
[null,null,null,null,null,null,""]
[null,null,null,null,null,null,""]
[null,null,null,null,null,null,""]
[null,null,null,null,null,null,""]
[null,null,null,null,null,null,""]
[null,null,null,null,null,null,""]
[null,null,null,null,null,null,""]
[null,null,null,null,null,null,""]
[null,null,null,null,null,null,""]
[null,null,null,null,null,null,""]
[null,null,null,null,null,null,""]
[null,null,null,null,null,null,""]
[null,null,null,null,null,null,""]
[null,null,null,null,null,null,""]
[null,null,null,null,null,null,""]
[null,null,null,null,null,null,""]
[null,null,null,null,null,null,""]
[null,null,null,null,null,null,""]
[null,null,null,null,null,null,""]
[null,null,null,null,null,null,""]
[null,null,null,null,null,null,""]
[null,null,null,null,null,null,""]
[null,null,null,null,null,null,""]
[null,null,null,null,null,null,""]
[null,null,null,null,null,null,""]
[null,null,null,null,null,null,""]
[null,null,null,null,null,null,""]
[null,null,null,null,null,null,""]
[null,null,null,null,null,null,""]
[null,null,null,null,null,null,""]
[null,null,null,null,null,null,""]
[null,null,null,null,null,null,""]
[null,null,null,null,null,null,""]
[null,null,null,null,null,null,""]
[null,null,null,null,null,null,""]
[null,null,null,null,null,null,""]
[null,null,null,null,null,null,""]
[null,null,null,null,null,null,""]
[null,null,null,null,null,null,""]
[null,null,null,null,null,null,""]
[null,null,null,null,null,null,""]
[null,null,null,null,null,null,""]
[null,null,null,null,null,null,""]
[null,null,null,null,null,null,{"$f":"IF(AND(E853=\"\",F853=\"\"),\"\",G852+F853-E853)","v":""}]
[null,null,null,null,null,null,""]
[null,null,null,null,null,null,""]
[null,null,null,null,null,null,""]
[null,null,null,null,null,null,""]
[null,null,null,null,null,null,""]
[null,null,null,null,null,null,""]
[null,null,null,null,null,null,""]
[null,null,null,null,null,null,""]
[null,null,null,null,null,null,""]
[null,null,null,null,null,null,""]
[null,null,null,null,null,null,""]
[null,null,null,null,null,null,""]
[null,null,null,null,null,null,""]
[null,null,null,null,null,null,""]
[null,null,null,null,null,null,""]
[null,null,null,null,null,null,""]
[null,null,null,null,null,null,""]
[null,null,null,null,null,null,""]
[null,null,null,null,null,null,""]
[null,null,null,null,null,null,""]
[null,null,null,null,null,null,""]
[null,null,null,null,null,null,""]
[null,null,null,null,null,null,""]
[null,null,null,null,null,null,""]
[null,null,null,null,null,null,""]
[null,null,null,null,null,null,""]
[null,null,null,null,null,null,""]
[null,null,null,null,null,null,""]
[null,null,null,null,null,null,""]
[null,null,null,null,null,null,""]
[null,null,null,null,null,null,""]
[null,null,null,null,null,null,""]
[null,null,null,null,null,null,""]
[null,null,null,null,null,null,""]
[null,null,null,null,null,null,""]
[null,null,null,null,null,null,""]
[null,null,null,null,null,null,""]
[null,null,null,null,null,null,""]
[null,null,null,null,null,null,""]
[null,null,null,null,null,null,""]
[null,null,null,null,null,null,""]
[null,null,null,null,null,null,""]
[null,null,null,null,null,null,""]
[null,null,null,null,null,null,""]
[null,null,null,null,null,null,""]
[null,null,null,null,null,null,""]
[null,null,null,null,null,null,""]
[null,null,null,null,null,null,""]
[null,null,null,null,null,null,""]
[null,null,null,null,null,null,""]
[null,null,null,null,null,null,""]
[null,null,null,null,null,null,""]
[null,null,null,null,null,null,""]
[null,null,null,null,null,null,""]
[null,null,null,null,null,null,""]
[null,null,null,null,null,null,""]
[null,null,null,null,null,null,""]
[null,null,null,null,null,null,""]
[null,null,null,null,null,null,""]
[null,null,null,null,null,null,""]
[null,null,null,null,null,null,""]
[null,null,null,null,null,null,""]
[null,null,null,null,null,null,""]
[null,null,null,null,null,null,{"$f":"IF(AND(E917=\"\",F917=\"\"),\"\",G916+F917-E917)","v":""}]
[null,null,null,null,null,null,""]
[null,null,null,null,null,null,""]
[null,null,null,null,null,null,""]
[null,null,null,null,null,null,""]
[null,null,null,null,null,null,""]
[null,null,null,null,null,null,""]
[null,null,null,null,null,null,""]
[null,null,null,null,null,null,""]
[null,null,null,null,null,null,""]
[null,null,null,null,null,null,""]
[null,null,null,null,null,null,""]
[null,null,null,null,null,null,""]
[null,null,null,null,null,null,""]
[null,null,null,null,null,null,""]
[null,null,null,null,null,null,""]
[null,null,null,null,null,null,""]
[null,null,null,null,null,null,""]
[null,null,null,null,null,null,""]
[null,null,null,null,null,null,""]
[null,null,null,null,null,null,""]
[null,null,null,null,null,null,""]
[null,null,null,null,null,null,""]
[null,null,null,null,null,null,""]
[null,null,null,null,null,null,""]
[null,null,null,null,null,null,""]
[null,null,null,null,null,null,""]
[null,null,null,null,null,null,""]
[null,null,null,null,null,null,""]
[null,null,null,null,null,null,""]
[null,null,null,null,null,null,""]
[null,null,null,null,null,null,""]
[null,null,null,null,null,null,""]
[null,null,null,null,null,null,""]
[null,null,null,null,null,null,""]
[null,null,null,null,null,null,""]
[null,null,null,null,null,null,""]
[null,null,null,null,null,null,""]
[null,null,null,null,null,null,""]
[null,null,null,null,null,null,""]
[null,null,null,null,null,null,""]
[null,null,null,null,null,null,""]
[null,null,null,null,null,null,""]
[null,null,null,null,null,null,""]
[null,null,null,null,null,null,""]
[null,null,null,null,null,null,""]
[null,null,null,null,null,null,""]
[null,null,null,null,null,null,""]
[null,null,null,null,null,null,""]
[null,null,null,null,null,null,""]
[null,null,null,null,null,null,""]
[null,null,null,null,null,null,""]
[null,null,null,null,null,null,""]
[null,null,null,null,null,null,""]
[null,null,null,null,null,null,""]
[null,null,null,null,null,null,""]
[null,null,null,null,null,null,""]
[null,null,null,null,null,null,""]
[null,null,null,null,null,null,""]
[null,null,null,null,null,null,""]
[null,null,null,null,null,null,""]
[null,null,null,null,null,null,""]
[null,null,null,null,null,null,""]
[null,null,null,null,null,null,""]
[null,null,null,null,null,null,{"$f":"IF(AND(E981=\"\",F981=\"\"),\"\",G980+F981-E981)","v":""}]
[null,null,null,null,null,null,""]
[null,null,null,null,null,null,""]
[null,null,null,null,null,null,""]
[null,null,null,null,null,null,""]
[null,null,null,null,null,null,""]
[null,null,null,null,null,null,""]
[null,null,null,null,null,null,""]
[null,null,null,null,null,null,""]
[null,null,null,null,null,null,""]
[null,null,null,null,null,null,""]
[null,null,null,null,null,null,""]
[null,null,null,null,null,null,""]
[null,null,null,null,null,null,""]
[null,null,null,null,null,null,""]
[null,null,null,null,null,null,""]
[null,null,null,null,null,null,""]
[null,null,null,null,null,null,""]
[null,null,null,null,null,null,""]
[null,null,null,null,null,null,""]
[null,null,null,null,null,null,""]
[null,null,null,null,null,null,""]
[null,null,null,null,null,null,""]
[null,null,null,null,null,null,""]
[null,null,null,null,null,null,""]
[null,null,null,null,null,null,""]
[null,null,null,null,null,null,""]
[null,null,null,null,null,null,""]
[null,null,null,null,null,null,""]
[null,null,null,null,null,null,""]
[null,null,null,null,null,null,""]
[null,null,null,null,null,null,""]
[null,null,null,null,null,null,""]
[null,null,null,null,null,null,""]
[null,null,null,null,null,null,""]
[null,null,null,null,null,null,""]
[null,null,null,null,null,null,""]
[null,null,null,null,null,null,""]
[null,null,null,null,null,null,""]
[null,null,null,null,null,null,""]
[null,null,null,null,null,null,""]
[null,null,null,null,null,null,""]
[null,null,null,null,null,null,""]
[null,null,null,null,null,null,""]
[null,null,null,null,null,null,""]
[null,null,null,null,null,null,""]
[null,null,null,null,null,null,""]
[null,null,null,null,null,null,""]
[null,null,null,null,null,null,""]
[null,null,null,null,null,null,""]
[null,null,null,null,null,null,""]
[null,null,null,null,null,null,""]
[null,null,null,null,null,null,""]
[null,null,null,null,null,null,""]
[null,null,null,null,null,null,""]
[null,null,null,null,null,null,""]
[null,null,null,null,null,null,""]
[null,null,null,null,null,null,""]
[null,null,null,null,null,null,""]
[null,null,null,null,null,null,""]
[null,null,null,null,null,null,""]
[null,null,null,null,null,null,""]
[null,null,null,null,null,null,""]
[null,null,null,null,null,null,""]
[null,null,null,null,null,null,{"$f":"IF(AND(E1045=\"\",F1045=\"\"),\"\",G1044+F1045-E1045)","v":""}]
[null,null,null,null,null,null,""]
[null,null,null,null,null,null,""]
[null,null,null,null,null,null,""]
[null,null,null,null,null,null,""]
[null,null,null,null,null,null,""]
[null,null,null,null,null,null,""]
[null,null,null,null,null,null,""]
[null,null,null,null,null,null,""]
[null,null,null,null,null,null,""]
[null,null,null,null,null,null,""]
[null,null,null,null,null,null,""]
[null,null,null,null,null,null,""]
[null,null,null,null,null,null,""]
[null,null,null,null,null,null,""]
[null,null,null,null,null,null,""]
[null,null,null,null,null,null,""]
[null,null,null,null,null,null,""]
[null,null,null,null,null,null,""]
[null,null,null,null,null,null,""]